Cogmind - Beta 16 @@@ ROGUE MODE // 2025.11.13 @ 18:45:24 Player: ClassActJerk Result: Self-destructed Performance ------------- Evolutions (1) 500 Regions Visited (2) 400 Robots Destroyed (14) 70 Value Destroyed (308) 308 Prototype IDs (0) 0 Alien Tech Used (0) 0 Bonus (0) 0 TOTAL SCORE: 1278 Bonus ------- None Cogmind --------- Core Integrity 151/400 Matter 292/300 Energy 8/100 System Corruption 0% Temperature Cool (0) Movement Core (400) Ox7 Location -9/Materials Parts ------- > --- POWER (1) -------- (None) > --- PROPULSION (2) --- (None) > --- UTILITY (3) ------ Large Storage Unit ECM Suite > --- WEAPON (3) ------- (None) > --- INVENTORY (15) --- Improved Targeting Computer Small Laser Light Assault Rifle Peak State ------------ > --- POWER ------------ Light Ion Engine > --- PROPULSION ------- Light Treads > --- UTILITY ---------- Large Storage Unit ECM Suite Hardened Light Armor Plating > --- WEAPON ----------- Small Laser Light Assault Rifle Light Assault Rifle > --- INVENTORY -------- Light Ion Engine Particle Gun Light Assault Rifle [Rating: 9] Favorites ----------- Power Light Ion Engine Engine Light Ion Engine Propulsion Light Treads Treads Light Treads Utility Large Storage Unit Device ECM Suite Storage Large Storage Unit Protection Hardened Light Armor Plating Weapon Light Assault Rifle Energy Gun Small Laser Ballistic Gun Light Assault Rifle Build | -11 -10 -9 ------- Run | Yrd Mat Mat Slots Evolved 2 | . . 2 Power . | . . . Propulsion . | . . . Utility 1 | . . 1 Weapon 1 | . . 1 Parts Attached 15 | 7 3 5 Power 4 | 2 1 1 Engine 4 | 2 1 1 Core . | . . . Reactor . | . . . Propulsion 2 | 2 . . Treads 2 | 2 . . Leg . | . . . Wheel . | . . . Hover . | . . . Flight . | . . . Utility 5 | 1 2 2 Device 1 | . 1 . Storage 2 | 1 1 . Processor . | . . . Hackware . | . . . Protection 2 | . . 2 Artifact . | . . . Weapon 4 | 2 . 2 Energy Gun 2 | 1 . 1 Energy Cannon . | . . . Ballistic Gun 2 | 1 . 1 Ballistic Cannon . | . . . Launcher . | . . . Special Weapon . | . . . Impact Weapon . | . . . Slashing Weapon . | . . . Piercing Weapon . | . . . Special Melee Weapon . | . . . Unidentified Prototypes . | . . . Parts Lost 9 | . 2 7 Power 3 | . 1 2 Propulsion 2 | . 1 1 Utility 1 | . . 1 Weapon 3 | . . 3 Highest Loss Streak 6 | . 2 6 To Critical Strikes . | . . . Average Backups 3 | 1 1 4 Power . | . . . Propulsion . | . . . Utility 1 | . . 1 Weapon 1 | . . 2 Tool/Special . | . . . Unused Backups 2 | . . 2 Power . | . . . Propulsion . | . . . Utility 1 | . . 1 Weapon 1 | . . 1 Tool/Special . | . . . Average Slot Usage (%) 87 | . 95 82 Engine 10 | . 13 8 Treads 16 | . 25 10 Device 11 | . 12 11 Storage 12 | . 14 11 Protection 6 | . . 10 Energy Gun 12 | . 14 10 Ballistic Gun 18 | . 14 20 Peak Build Rating 9 | 6 7 9 Average Rating 7 | 4 6 8 On Entrance 4 | . 6 6 Avg Prop Armor Cover (%) . | . . . Naked Turns . | . . . Heaviest Build 33 | 12 29 33 Greatest Support 40 | 40 40 20 Greatest Overweight (x) 9 | . 1 9 Average Overweight (x) . | . . 1 Largest Inventory Capacity 15 | 8 15 15 Average Capacity 14 | 7 14 15 Most Carried 5 | 5 4 5 Average Carried 3 | 1 1 4 Final Capacity 15 | 8 15 15 Final Carried 4 | 1 4 3 Class Distribution -------------------- 51% | Tank 44% | Mutant 3% | Gunner Dominant Class ---------------- Mutant | -10/Materials Tank | -9/Materials Resources | -11 -10 -9 ----------- Run | Yrd Mat Mat Matter Collected 371 | 199 136 36 Remotely . | . . . Salvage Created 390 | . 296 94 Parts 31 | . 26 5 Haulers Intercepted . | . . . Recyclers Shooed . | . . . Parts Field Recycled . | . . . Retrieved Matter . | . . . Parts Self-Destructed . | . . . Prevented . | . . . Parts Restored . | . . . Kills | -11 -10 -9 ------- Run | Yrd Mat Mat Combat Hostiles Destroyed 14 | . 12 2 Guns 14 | . 12 2 Classes Destroyed 3 | . 2 1 Swarmer 8 | . 8 . Grunt 5 | . 4 1 Sentry 1 | . . 1 Best Kill Streak 6 | . 6 1 Combat Bots Only 6 | . 6 1 Max Kills in Single Turn 1 | . 1 1 Gunslinging . | . . . Exploded . | . . . Melee . | . . . Uniques/NPCs Destroyed . | . . . Combat | -11 -10 -9 -------- Run | Yrd Mat Mat Hostile Shots Fired 144 | . 87 57 Missed 47 | . 28 19 Hits 97 | . 59 38 Melee 17 | . . 17 Projectile 80 | . 59 21 Critical Strikes 3 | . 1 2 Damage Taken 1359 | . 566 793 Core 378 | . 129 249 Absorbed by Shields . | . . . Core Remaining (%) 74 | 100 48 . Volleys Fired 37 | . 30 7 Largest 3 | . 2 3 Hottest 80 | . 60 80 Shots Fired 81 | . 60 21 Gun 81 | . 60 21 Cannon . | . . . Launcher . | . . . Special . | . . . Kinetic 44 | . 30 14 Thermal 37 | . 30 7 Explosive . | . . . Electromagnetic . | . . . Robot Hit Streak 10 | . 10 10 Robot Miss Streak 5 | . 5 3 Penetration Max . | . . . Secondary Targets 2 | . 2 . Max Gunslinging Chain 1 | . 1 . Shots Hit Robots 48 | . 35 13 Core Hits 25 | . 19 6 Critical Kills . | . . . Critical Parts Destroyed . | . . . Critical Strikes . | . . . Melee Attacks . | . . . Impact . | . . . Slashing . | . . . Piercing . | . . . Sneak Attacks . | . . . Combat Hostiles . | . . . Follow-up Attacks . | . . . Damage Inflicted 478 | . 333 145 Guns 478 | . 333 145 Cannons . | . . . Explosions . | . . . Melee . | . . . Ramming . | . . . Kinetic 214 | . 114 100 Thermal 264 | . 219 45 Explosive . | . . . Electromagnetic . | . . . Impact . | . . . Slashing . | . . . Piercing . | . . . Highest Corruption . | . . . Average Corruption . | . . . Corruption Purged . | . . . Corruption Blocked . | . . . Overload Shots . | . . . Overflow Damage . | . . . Projectiles . | . . . Explosions . | . . . Melee . | . . . Knockbacks . | . . . Impact . | . . . Kinetic . | . . . Secondary . | . . . Self-Inflicted Damage . | . . . Shots . | . . . Rammed . | . . . Targets Rammed . | . . . Kicked . | . . . Crushed . | . . . Highest Temperature 130 | . 130 97 Average Temperature 42 | . 43 35 Received Heat Transfer 282 | . 135 147 Siege Activations . | . . . Martial Activations . | . . . Shielding Activations . | . . . Robots Disrupted . | . . . Combat Hostiles . | . . . Robots Corrupted . | . . . Combat Hostiles . | . . . Parts Fried . | . . . Impact Corruptions . | . . . Robots Melted . | . . . Combat Hostiles . | . . . Parts Melted 1 | . 1 . Heat Transferred 600 | . 500 100 Parts Sabotaged . | . . . Parts Stolen . | . . . Parts Stripped . | . . . Power Chain Reactions . | . . . Alert | -11 -10 -9 ------- Run | Yrd Mat Mat Maximum Alert Level . | . . . Low Security (%) 100 | 100 100 100 Level 1 . | . . . Level 2 . | . . . Level 3 . | . . . Level 4 . | . . . Level 5 . | . . . High Security . | . . . Max Security . | . . . Peak Influence 132 | . 132 38 Initial 38 | . . 38 Average 15 | . 36 4 Influence Increases 350 | . 290 60 Destroy 0b10 Robot/C 280 | . 240 40 Destroy Leader 70 | . 50 20 Influence Decreases 350 | . 198 152 Entered New Map 54 | . . 54 Time Decay 276 | . 178 98 Lost Part 20 | . 20 . Squads Dispatched 3 | . 2 1 Investigation . | . . . Extermination . | . . . Reinforcement 3 | . 2 1 Assault . | . . . Garrison . | . . . Intercept . | . . . Searches Triggered . | . . . Construction Impeded . | . . . Haulers Reinforced . | . . . Active Scanning Responses . | . . . Cargo Convoy Interrupts . | . . . Stealth | -11 -10 -9 --------- Run | Yrd Mat Mat Distress Signals 2 | . 1 1 Communications Jammed . | . . . Distress Signals . | . . . Times Spotted 33 | . 23 10 Peak Tracking Total 5 | . 5 2 Tactical Retreats 6 | . 3 3 ECM-based Alert Blocks 9 | . 6 3 Traps | -11 -10 -9 ------- Run | Yrd Mat Mat Traps Triggered 1 | . . 1 Indirectly . | . . . Trap Hack Attempts . | . . . Triggered . | . . . Disarmed . | . . . Reprogrammed . | . . . Reused . | . . . Traps Extracted . | . . . Installed . | . . . Triggered . | . . . Machines | -11 -10 -9 ---------- Run | Yrd Mat Mat Machines Disabled . | . . . Max in Single Turn . | . . . Machines Repaired . | . . . Machines Dismantled . | . . . Machines Sabotaged . | . . . Overloaded Fab Kills . | . . . Hacking | -11 -10 -9 --------- Run | Yrd Mat Mat Machines Accessed 1 | . . 1 Terminals 1 | . . 1 Fabricators . | . . . Repair Stations . | . . . Recycling Units . | . . . Scanalyzers . | . . . Garrison Access . | . . . Total Hacks 1 | . . 1 Successful 1 | . . 1 Failed . | . . . Catastrophic . | . . . Database Lockouts . | . . . Manual . | . . . Terminals 1 | . . 1 Fabricators . | . . . Repair Stations . | . . . Recycling Units . | . . . Scanalyzers . | . . . Garrison Access . | . . . Terminal Hacks 1 | . . 1 Maintenance Status 1 | . . 1 Fabricator Hacks . | . . . Repair Station Hacks . | . . . Recycling Unit Hacks . | . . . Scanalyzer . | . . . Garrison Access Hacks . | . . . Unauthorized Hacks . | . . . Terminals . | . . . Fabricators . | . . . Repair Stations . | . . . Recycling Units . | . . . Scanalyzers . | . . . Garrison Access . | . . . Data Cores Recovered . | . . . Used . | . . . Hacking Detections . | . . . Full Trace Events . | . . . Feedback Events . | . . . Feedback Blocked . | . . . Robot Schematics Acquired . | . . . Robots Built . | . . . Authchips . | . . . Time . | . . . Total Robot Build Rating . | . . . Part Schematics Acquired . | . . . Parts Built . | . . . Authchips . | . . . Time . | . . . Total Part Build Rating . | . . . Part Studies Acquired . | . . . Parts Repaired . | . . . Time . | . . . Parts Recycled . | . . . Recycled Matter . | . . . Retrieved Matter . | . . . Retrieved Components . | . . . Parts Scanalyzed . | . . . Part Schematics Acquired . | . . . Parts Damaged . | . . . Bothacking | -11 -10 -9 ------------ Run | Yrd Mat Mat Used RIF Installer . | . . . Robots Hacked . | . . . Non-combat . | . . . Combat . | . . . Robot Hacks Applied . | . . . Relay Couplers Released . | . . . Fabnet Peak Effective % . | . . . Robots Rewired . | . . . Allies Hacked . | . . . Hacks Repelled . | . . . Allies | -11 -10 -9 -------- Run | Yrd Mat Mat Total Allies . | . . . Largest Group . | . . . Highest-Rated Group . | . . . Highest-Rated Ally . | . . . Total Orders . | . . . Ally Attacks . | . . . Total Damage . | . . . Kills . | . . . Allies Corrupted . | . . . Allies Melted . | . . . Intel | -11 -10 -9 ------- Run | Yrd Mat Mat Active Infowar (turns) 1313 | . 469 844 ECM 1313 | . 469 844 Robot Analysis Total . | . . . Derelict Logs Recovered . | . . . Drone Launches . | . . . Drone Recoveries . | . . . Exploration | -11 -10 -9 ------------- Run | Yrd Mat Mat Turns Passed 1462 | 95 523 844 Spaces Moved 386 | 44 205 137 Core 25 | 23 . 2 Treads 361 | 21 205 135 Legs . | . . . Wheels . | . . . Hover . | . . . Flight . | . . . Fastest Speed 50 | 50 160 240 Average Speed 188 | 102 170 243 Slowest Speed 500 | 160 240 500 Overloaded Moves . | . . . Propulsion Burnouts . | . . . Robots Hopped . | . . . Potential Cave-ins . | . . . Cave-ins Triggered . | . . . Exploration Rate (%) 19 | 4 39 16 Regions Visited 2 Branch Regions . Pre-discovered Areas . | . . . Known Exits Taken . | . . . Unknown Exits Taken 2 | 1 1 . Scrap Searched . | . . . Spaces Dug . | . . . Terrain Destroyed . | . . . Melee . | . . . Projectile . | . . . AOE . | . . . Terrain Rammed . | . . . Walls Destroyed . | . . . Machines Disabled . | . . . Actions | -11 -10 -9 --------- Run | Yrd Mat Mat Total 1051 | 93 325 633 Wait 597 | 38 78 481 Move 384 | 43 204 137 Hop . | . . . Pick Up 15 | 5 7 3 Fast Attach 2 | 2 . . Attach 10 | 4 2 4 Detach . | . . . Swap 4 | 1 2 1 Drop 2 | . 2 . Fire 37 | . 30 7 Melee . | . . . Ram . | . . . Kick . | . . . Crush . | . . . Escape Stasis . | . . . Rewire . | . . . Trap . | . . . Miscellaneous . | . . . Route ------- -11/Scrapyard -10/Materials -9/Materials History --------- Turn | Location | Event 3 | -11/Scrapyard | Discovered new exit (range 16) 96 | -11/Scrapyard | Entered Materials 304 | -10/Materials | Build established: Mutant 494 | -10/Materials | Discovered new exit (range 16) 512 | -10/Materials | Core integrity fell below 50% 619 | -10/Materials | Entered another Materials area 619 | -9/Materials | Evolved 2 slots: Utility x1, Weapon x1 947 | -9/Materials | Build established: Tank 1441 | -9/Materials | Core integrity fell below 50% 1463 | -9/Materials | Self-destructed Last Messages --------------- 01403_ K-01 Serf collects debris. 01416_ R-06 Scavenger collects Hrd. Light Armor Plating. 01417_ K-01 Serf collects debris. 01418_ Lgt. Assault Rifle destroyed. 01418_ K-01 Serf collects debris. 01418_ U-05 Engineer destroyed. 01419_ R-06 Scavenger collects Terrain Scan Processor. 01421_ K-01 Serf collects debris. 01422_ R-06 Scavenger collects Wheel. 01423_ Lgt. Assault Rifle destroyed. 01424_ K-01 Serf collects debris. 01426_ R-06 Scavenger collects Structural Scanner. 01427_ K-01 Serf collects debris. 01436_ K-01 Serf cleans the Matter Pump. 01437_ K-01 Serf collects debris. 01447_ Lgt. Armor Plating destroyed. 01457_ Particle Gun destroyed. Map ----- +----------------------------------------------------+ | ???????????????????????????????# ## #? | | ??????????????????????????????## ## """"" #? | | ??????????????????????????????# # """"" #? | | ??????????????????????????????# # """"" #? | | ??????????????????????????????# " +% """"" #? | | ??????????????????????????????# # """"" #? | | ??????????????????????????????# # """"" #? | | ??????????????????????????????### ### """"" #? | | ????????????????????????????????# #?# #? | | ????????????????????????????????# #?#### #####? | | ????????????????????????????????# ########????? | | ????????????????????????????????# #??????? | | ????????????????????????????????######%#??????? | | ?????????????????????????????????????# ######## | | ??????????????????????????###+######## # = # | | ??????????????????????????# # # | | ??????????????????????????# # # | | ??????????????????????????+ + """ # | | ??????????????????????????# # """ # | | ??????????????????????????# # """ # | | ??????????????????????????# ##+####? | | ??????????????????????????# ^ ! #???? | | ??????????????????????????+ ^ ^ ^ ##??? | | ??????????????????????????###^ "#??? | | ???????????????????########## """ """ T#??? | | ???????????????????# @lg % """ """ "#??? | | ???????????????????# """ ### | """ """ ##??? | | ???????????????????# "R" ??# r #???? | | ???????????????????# " "???# #???? | | ???????????????????# ???# #######???? | | ???????????????????# ????# %* #?????????? | | ???????????????????####????# #?????????? | | ???????????????????????????# #?????????? | | ???????????????????????????# #?????????? | | ???????????????????????????# ?????????? | | ??????????????????????????/ ????????? | | ????????????????????????? ## #???????? | | ????????????????????????"??# #???????? | | ???????????????????????????###+### #???????? | | ?????????????????????????????????+ +???????? | | ??????????????????????????????????#####???????? | | ??????????????????????????????????????????????? | | ??????????????????????????????????????????????? | | ??????????????????????????????????????????????? | | ??????????????????????????????????????????????? | | ??????????????????????????????????????????????? | | ??????????????????????????????????????????????? | | ??????????????????????????????????????????????? | | ??????????????????????????????????????????????? | | ??????????????????????????????????????????????? | +----------------------------------------------------+ Best States ------------- Heat Dissipation 28 Energy Generation 10 Energy Capacity 250 Matter Stores 300 Matter Capacity 300 Sight Range 16 Terrain Scan Density 10 ECM Strength 1 Armor Coverage 150 Evasion (%) 50 Recoil Reduction 2 Item Schematics ----------------- None Robot Schematics ------------------ None Fabricated ------------ Nothing Repaired ---------- Nothing Studied --------- None Alien Tech Used ----------------- None Achievements -------------- None Challenges ------------ None Game ------ Seed CryofiberForceFemtoactuators Manual? 0 Play Time 00:11:06 Cumulative 23.8 hours Start 2025.11.13 @ 18:37:36 End 2025.11.13 @ 18:45:24 Sessions 1 Manual Loads 0 Difficulty Rogue Special Mode None Game No. 75 Rogue 75 Adventurer 0 Explorer 0 Win Type - Total 0 Types 0/0/0/0/0/0/0/0/0/0 Lore% 6 Gallery% 20 Achievement% 15 Wizard Run 0 Options --------- Layout 1 ASCII 0 Keyboard 0 Movement Mouse Keybinds 0 Fullscreen 1 Font 24/Terminus Map View 50x35 Zoom Use 0% Tactical HUD 1 Map Filters NONE Filters NONE Steam 1 RUN: cfbe9190-382d-4189-9342-c9b3b6085acd